[Event "Julius Baer Generation Cup KO 2022"]
[Site "Online"]
[Date "2022.09.22"]
[Round "1.1"]
[White "Carlsen, Magnus"]
[Black "Aronian, Levon"]
[Result "1-0"]
[ECO "D23"]
[WhiteElo "2861"]
[BlackElo "2759"]
[Annotator "TA"]
[PlyCount "63"]
[EventDate "2022.09.22"]
[EventType "k.o."]
[EventCountry "NET"]
[SourceTitle "playchess.com"]
[Source "ChessBase"]
[SourceQuality "1"]
[TimeControl "900+10"]

{[%evp 9,63,39,31,22,22,30,15,18,39,25,54,33,41,24,84,37,111,100,131,135,137,134,123,127,162,98,116,116,309,283,272,283,399,385,441,439,527,535,517,490,577,624,602,623,787,779,801,674,947,945,1038,1025,1185,1276,1229,1198]} 1. Nf3 {[%emt 0:00:00]} d5 {[%emt 0:00:00]} 2. d4 {[%emt 0:00:02]} Nf6 {[%emt 0:00:04]} 3. c4 {[%emt 0:00:01]} dxc4 {[%emt 0:00:02]} 4. Qa4+ {[%emt 0:00:01]} Nc6 {[%emt 0:00:14]} 5. Qxc4 {[%emt 0:00:03]} e5 {[%emt 0:00:18]} 6. Nxe5 {[%emt 0:00:04] D23: Queen's Gambit Accepted: 3 Nf3 Nf6 sidelines.} Nxe5 {[%emt 0:00:04]} 7. dxe5 {[%emt 0:00:00]} Ng4 {[%emt 0:00:01] [#]} 8. Nc3 $146 {[%emt 0:00:01] The position is equal.} ({Predecessor:} 8. Bf4 c6 9. e3 g5 10. Bg3 Qa5+ 11. Nd2 Be6 12. Qc2 O-O-O 13. O-O-O Bb4 14. a3 Bxd2+ 15. Rxd2 {½-½ (45) Rapport,R (2763)-Dominguez Perez,L (2758) Saint Louis 2021}) 8... c6 {[%emt 0:03:21]} 9. Qe4 {[%emt 0:00:45]} Bc5 {[%emt 0:04:00][%csl Gg4][%cal Rc5f2]} 10. e3 {[%emt 0:00:02]} Qe7 {[%emt 0:00:01]} 11. f4 {[%emt 0:00:11]} O-O {[%emt 0:00:02]} (11... Nh6 $11) 12. Be2 {[%emt 0:00:31]} (12. Qf3 $16) 12... Bb6 {[%emt 0:00:50] [#]} (12... Nh6 $1 $14) 13. O-O $1 $16 {[%emt 0:00:41]} f5 {[%emt 0:00:17]} 14. Qf3 {[%emt 0:00:24]} Be6 {[%emt 0:00:02]} 15. h3 {[%emt 0:00:19]} Nh6 {[%emt 0:00:15]} 16. Bd2 {[%emt 0:00:41]} g5 {[%emt 0:00:27]} 17. Kh2 {[%emt 0:02:50]} (17. Na4 $18) 17... Kh8 {[%emt 0:00:30]} 18. Qh5 {[%emt 0:00:34]} Rg8 $2 {[%emt 0:01:11] Black cannot hold the game after this.} 19. Qxh6 $18 {[%emt 0:00:25]} Rg6 {[%emt 0:00:02]} 20. Qh5 {[%emt 0:00:01] Black must now prevent e4.} Rag8 {[%emt 0:00:01]} (20... Qg7 {was worth a try.}) 21. g4 {[%emt 0:05:12] Strongly threatening e4.} Qg7 {[%emt 0:00:38] [#]} 22. e4 $1 {[%emt 0:00:07] White is clearly winning.} fxg4 {[%emt 0:05:50] Hoping for ...Rh6.} 23. f5 {[%emt 0:00:04]} Rh6 {[%emt 0:00:23]} 24. Qxg4 {[%emt 0:00:06]} Bc7 {[%emt 0:00:02]} 25. Be1 {[%emt 0:00:39]} ({Not} 25. fxe6 $2 Qxe5+ 26. Bf4 gxf4 27. Qxg8+ (27. Qf3 Qxe6 28. Rg1 Rxh3+ 29. Qxh3 f3+ 30. e5 Bxe5+) 27... Kxg8 28. Rg1+ Kf8 $19) 25... Bxe5+ {[%emt 0:00:04]} 26. Bg3 {[%emt 0:00:01]} Bxg3+ {[%emt 0:00:40]} 27. Qxg3 {[%emt 0:00:01]} g4 {[%emt 0:00:00]} 28. Bxg4 {[%emt 0:00:22]} Bc4 {[%emt 0:00:07]} 29. Rg1 {[%emt 0:00:08]} b5 {[%emt 0:00:11]} 30. e5 {[%emt 0:00:27]} b4 {[%emt 0:00:17]} 31. Ne4 {[%emt 0:00:05]} Bd5 {[%emt 0:00:15]} 32. Rae1 {[%emt 0:00:07] Weighted Error Value: White=0.13 (very precise) /Black=0.43} 1-0

[Event "Julius Baer Generation Cup KO 2022"]
[Site "Online"]
[Date "2022.09.22"]
[Round "1.1"]
[White "Aronian, Levon"]
[Black "Carlsen, Magnus"]
[Result "0-1"]
[ECO "D32"]
[WhiteElo "2759"]
[BlackElo "2861"]
[Annotator "TA"]
[PlyCount "96"]
[EventDate "2022.09.22"]
[EventType "k.o."]
[EventCountry "NET"]
[SourceTitle "playchess.com"]
[Source "ChessBase"]
[SourceQuality "1"]
[TimeControl "900+10"]

{[%evp 13,95,39,43,39,61,17,16,0,0,0,0,-365,-363,-370,-358,-396,-404,-398,-395,-391,-392,-538,-538,-539,-518,-669,-667,-675,-670,-637,-305,-291,-250,-240,-241,-241,-233,-238,-241,-247,-247,-255,-257,-260,-248,-263,-261,-267,-233,-249,-231,-295,-245,-318,-313,-328,-265,-323,-291,-422,-395,-539,-420,-674,-653,-616,-611,-587,-391,-756,-756,-756,-756,-756,-756,-756,-749,-749,-723,-702,-654,-29972,-29973,-29999]} 1. d4 {[%emt 0:00:00]} Nf6 {[%emt 0:00:00]} 2. c4 {[%emt 0:00:02]} e6 {[%emt 0:00:03]} 3. Nf3 {[%emt 0:00:03]} d5 {[%emt 0:00:01]} 4. Nc3 {[%emt 0:00:01]} c5 {[%emt 0:00:02]} 5. cxd5 {[%emt 0:00:04]} exd5 {[%emt 0:00:00]} 6. Bg5 {[%emt 0:00:15]} (6. g3 Nc6 7. Bg2 cxd4 8. Nxd4 Bc5 9. Nxc6 bxc6 10. O-O O-O 11. Qc2 Bb6 12. Na4 Bd7 13. b3 Re8 14. Bb2 h5 15. h4 Ne4 16. e3 Rc8 17. Nxb6 axb6 18. Qd1 Bf5 19. Qxh5 {0-1 (59) Aronian,L (2775)-Carlsen,M (2872) Moscow 2019 CBM 193 Extra [Nielsen,Peter Heine]}) 6... Be6 {[%emt 0:00:02]} 7. Bxf6 {[%emt 0:01:30]} Qxf6 {[%emt 0:00:03]} 8. e4 {[%emt 0:00:01] D32: Tarrasch Defence: Sidelines and lines without g3.} dxe4 {[%emt 0:00:01]} 9. Nxe4 {[%emt 0:01:13]} Qf4 {[%emt 0:00:02]} 10. Nxc5 {[%emt 0:00:47] The position is equal.} Bxc5 {[%emt 0:00:22]} 11. dxc5 {[%emt 0:00:01]} Nc6 {[%emt 0:01:03][%cal Bb8c6,Bc6b4,Bb4d3][%mdl 32] [#] Prevents Qd4.} 12. Bd3 $146 {[%emt 0:01:16][%mdl 8192] [#]} (12. a3 $11 {and White has nothing to worry.}) ({Predecessor:} 12. a3 O-O 13. Qc1 Qe4+ 14. Qe3 Qc2 15. Bd3 Qxb2 16. O-O Qf6 17. Ng5 Bf5 18. Bxf5 Qxf5 19. Ne4 {½-½ (19) Atalik,S (2509)-Ivic,V (2548) Ruma 2020}) 12... O-O-O $1 $19 {[%emt 0:01:20]} 13. O-O {[%emt 0:01:49]} Nb4 {[%emt 0:02:51]} 14. Qa4 {[%emt 0:00:02]} (14. g3 Qc7 15. Ne1 Nxd3 16. Nxd3 Bf5 $19) 14... Nxd3 {[%emt 0:00:01][%mdl 64] Discovered Attack} 15. Qxa7 {[%emt 0:00:02][%cal Oc5c6]} Bd5 {[%emt 0:00:02]} 16. Ne1 {[%emt 0:01:24]} Ne5 {[%emt 0:01:33][%cal Od5g2] [#] White must now prevent ...Bxg2!} 17. Rd1 {[%emt 0:00:21][%cal Od1d5]} Nc6 {[%emt 0:01:16]} 18. Qa3 {[%emt 0:00:35]} Bc4 {[%emt 0:00:12][%csl LRd1,LRf1]} 19. Nd3 {[%emt 0:00:02]} Qd4 {[%emt 0:00:15]} 20. b4 {[%emt 0:00:20]} Bxd3 {[%emt 0:01:06]} 21. b5 {[%emt 0:00:01]} Qb4 {[%emt 0:01:28]} (21... Nb8 $142 22. c6 bxc6 23. bxc6 Nxc6) 22. Rxd3 {[%emt 0:00:36] aiming for Qa8+.} Qxa3 {[%emt 0:00:04]} 23. Rxa3 {[%emt 0:00:01]} Nd4 {[%emt 0:00:00]} 24. c6 {[%emt 0:00:08]} Nxb5 {[%emt 0:00:17]} 25. cxb7+ {[%emt 0:00:05]} Kb8 {[%emt 0:00:02]} 26. Rf3 {[%emt 0:00:33]} Rd7 {[%emt 0:00:04]} ({Stronger than} 26... Kxb7 27. Rxf7+ Kc6 28. Rxg7 $15) 27. h4 {[%emt 0:00:07]} Nd4 {[%emt 0:00:05]} 28. Re3 {[%emt 0:00:03]} Rhd8 {[%emt 0:00:05]} 29. g3 {[%emt 0:00:27]} Ne6 {[%emt 0:00:06]} 30. Kg2 {[%emt 0:00:17]} Rd1 {[%emt 0:00:08]} 31. Rxd1 {[%emt 0:00:52]} Rxd1 {[%emt 0:00:00][%mdl 4096] Endgame KRN-KR} 32. f4 {[%emt 0:00:10]} Rd2+ {[%emt 0:00:09]} (32... Kxb7 $2 33. f5 Rd2+ 34. Kh3 $19) 33. Kh3 {[%emt 0:00:01]} Rd5 {[%emt 0:00:15]} ({And not} 33... Rxa2 34. f5 Nd8 35. Re8 $17) 34. Rb3 {[%emt 0:00:13]} Ra5 {[%emt 0:00:05]} 35. a3 {[%emt 0:00:08]} h5 {[%emt 0:00:05]} ({But not} 35... Nc5 $2 36. Re3 $19) 36. Kg2 {[%emt 0:00:02]} (36. Rd3 $142) 36... g6 {[%emt 0:00:05]} 37. Kf2 {[%emt 0:00:03]} Nd4 {[%emt 0:00:01]} 38. Rb6 {[%emt 0:00:09]} (38. Rd3 $142 Ra4 39. Ke3) 38... Rxa3 {[%emt 0:02:09]} 39. Rf6 {[%emt 0:00:02]} Ra2+ {[%emt 0:00:01]} 40. Kg1 {[%emt 0:00:25]} Ne2+ {[%emt 0:00:16]} 41. Kf2 $2 {[%emt 0:00:08]} (41. Kg2) 41... Nxf4+ {[%emt 0:00:23]} 42. Kf1 {[%emt 0:00:23]} Ra1+ {[%emt 0:00:34]} 43. Kf2 {[%emt 0:00:02]} Nd3+ {[%emt 0:00:01]} 44. Ke3 {[%emt 0:00:14]} Ne5 {[%emt 0:00:02] ( -> ...Ng4+)} 45. Kf4 {[%emt 0:00:13]} Re1 {[%emt 0:00:13]} 46. Rb6 {[%emt 0:00:08]} Ng4 {[%emt 0:00:10]} 47. Rd6 {[%emt 0:00:44]} Rf1+ {[%emt 0:00:08]} 48. Kg5 {[%emt 0:00:06]} Rf5# {[%emt 0:00:01] White got outplayed after the opening.  Weighted Error Value: White=0.64/Black=0.29 (precise)} 0-1

[Event "Julius Baer Generation Cup KO 2022"]
[Site "Online"]
[Date "2022.09.22"]
[Round "1.1"]
[White "Le, Quang Liem"]
[Black "Niemann, Hans Moke"]
[Result "1-0"]
[ECO "D40"]
[WhiteElo "2728"]
[BlackElo "2688"]
[Annotator "TA"]
[PlyCount "87"]
[EventDate "2022.09.22"]
[EventType "k.o."]
[EventCountry "NET"]
[SourceTitle "playchess.com"]
[Source "ChessBase"]
[SourceQuality "1"]
[TimeControl "900+10"]

{[%evp 18,87,2,20,25,9,9,7,8,-12,-4,-9,-8,-20,-25,-25,10,12,7,4,7,12,78,70,75,74,98,18,350,350,350,350,351,350,350,343,328,322,287,266,262,237,217,177,186,185,185,177,171,170,302,340,327,315,370,359,438,434,415,407,606,576,629,617,607,570,606,570,591,449,804,746]} 1. d4 {[%emt 0:00:00]} Nf6 {[%emt 0:00:00]} 2. Nf3 {[%emt 0:00:02]} d5 {[%emt 0:00:02]} 3. c4 {[%emt 0:00:01]} e6 {[%emt 0:00:01]} 4. Nc3 {[%emt 0:00:01]} c5 {[%emt 0:00:00]} 5. e3 {[%emt 0:00:04]} Nc6 {[%emt 0:00:02]} 6. a3 {[%emt 0:00:20]} dxc4 {[%emt 0:00:06]} 7. Bxc4 {[%emt 0:00:00][%cal Bf1c4,Bc4a2,Ba2d5][%mdl 32]} a6 {[%emt 0:00:00]} 8. O-O {[%emt 0:00:50]} b5 {[%emt 0:00:03]} 9. Ba2 {[%emt 0:00:28]} Bb7 {[%emt 0:00:03]} 10. Qe2 {[%emt 0:00:32]} Qc7 {[%emt 0:00:02] D40: Queen's Gambit Declined: Semi-Tarrasch with 5 e3.} 11. Rd1 {[%emt 0:00:13]} Rd8 {[%emt 0:00:19]} 12. d5 {[%emt 0:01:15]} exd5 {[%emt 0:00:05] The position is equal.} 13. Nxd5 {[%emt 0:00:20]} Nxd5 {[%emt 0:00:03]} 14. Bxd5 {[%emt 0:00:00][%cal Ob2b4]} Be7 {[%emt 0:00:06]} 15. e4 {[%emt 0:00:03]} O-O {[%emt 0:00:13]} 16. g3 {[%emt 0:00:22]} Na5 {[%emt 0:00:39]} 17. Bf4 {[%emt 0:00:05]} Qb6 {[%emt 0:00:23] [#]} 18. Ne5 $146 {[%emt 0:00:39]} ({Predecessor:} 18. Rac1 c4 19. Nd4 Bxd5 20. exd5 Bf6 21. Nf5 Nb3 22. Rc2 Rfe8 23. Qg4 g6 24. Nh6+ {0-1 (31) Batsiashvili,N (2482)-Xiong,J (2656) Douglas 2018}) 18... Bxd5 {[%emt 0:00:14]} (18... Nc6 {keeps more tension.} 19. Qh5 Nxe5 20. Qxe5 Bf6) 19. Rxd5 {[%emt 0:00:06]} Qb7 {[%emt 0:02:27] [#] Inhibits Nd7.} (19... g5 $11) 20. Rad1 $1 $16 {[%emt 0:00:09] Black must now prevent Rd7. White has more active pieces.} Rxd5 {[%emt 0:04:05]} 21. exd5 {[%emt 0:00:33][%cal Oe5c6] Strongly threatening Nc6!} Bf6 {[%emt 0:02:48]} 22. d6 {[%emt 0:05:08]} (22. b4 $16 Bxe5 23. Qxe5 (23. Bxe5 cxb4 24. Bxg7 Kxg7 $16)) 22... Nc6 {[%emt 0:00:27][%mdl 8192] This costs Black the game.} (22... Nb3 $11) 23. Nxc6 $18 {[%emt 0:00:17]} Qxc6 {[%emt 0:00:04]} 24. d7 {[%emt 0:00:01] Against Re8} Qe6 {[%emt 0:02:01]} 25. Qxe6 {[%emt 0:00:18]} fxe6 {[%emt 0:00:01][%mdl 4096] Endgame KRB-KRB} 26. Bd6 {[%emt 0:00:03][%csl LRc5,LRf8]} Ra8 {[%emt 0:00:07]} 27. Bxc5 {[%emt 0:00:02] Hoping for Bb6.} Kf7 {[%emt 0:00:16]} 28. b4 {[%emt 0:00:11]} Bd8 {[%emt 0:00:30]} 29. Rd3 {[%emt 0:02:13] And now Rf3+ would win.} e5 {[%emt 0:00:21]} 30. Kg2 {[%emt 0:00:03] aiming for Kf3.} Bc7 {[%emt 0:00:07] [#]} 31. Bd6 $1 {[%emt 0:00:31]} Bxd6 {[%emt 0:00:09]} 32. Rxd6 {[%emt 0:00:00] KR-KR} Ke7 {[%emt 0:00:08]} 33. Rd5 {[%emt 0:00:03]} e4 {[%emt 0:00:05]} (33... Rf8 {was called for.} 34. f3 (34. Rxe5+ Kxd7 35. f4 Rc8 $16) 34... Kd8 35. Rxe5 Kxd7) 34. Kf1 {[%emt 0:00:31]} Kd8 {[%emt 0:00:16]} 35. Ke2 {[%emt 0:00:03]} Ra7 {[%emt 0:00:05]} 36. Ke3 {[%emt 0:00:16]} Rc7 {[%emt 0:00:03]} 37. Kxe4 {[%emt 0:00:02]} Rc2 {[%emt 0:00:14]} 38. Ke3 {[%emt 0:00:04]} Ra2 {[%emt 0:00:11]} (38... Rc6 $142 39. Ke4 Rc4+ 40. Rd4 Rc2) 39. Rd3 {[%emt 0:00:03] White is clearly winning.} Ra1 {[%emt 0:00:00]} 40. h4 {[%emt 0:00:09]} Re1+ {[%emt 0:00:04]} 41. Kf4 {[%emt 0:00:02]} Re2 {[%emt 0:00:05]} 42. f3 {[%emt 0:00:06]} Ra2 {[%emt 0:00:05]} 43. Ke5 {[%emt 0:00:19] Threatens to win with Ke6.} Rc2 {[%emt 0:00:16]} (43... Re2+ $142 44. Kd6 Rg2) 44. Ke6 {[%emt 0:00:11] Weighted Error Value: White=0.13 (very precise) /Black=0.39} 1-0

[Event "Julius Baer Generation Cup KO 2022"]
[Site "Online"]
[Date "2022.09.22"]
[Round "1.1"]
[White "Erigaisi Arjun"]
[Black "Yoo, Christopher Woojin"]
[Result "1-0"]
[ECO "D26"]
[WhiteElo "2725"]
[BlackElo "2563"]
[Annotator "TA"]
[PlyCount "145"]
[EventDate "2022.09.22"]
[EventType "k.o."]
[EventCountry "NET"]
[SourceTitle "playchess.com"]
[Source "ChessBase"]
[SourceQuality "1"]
[TimeControl "900+10"]

{[%evp 20,145,45,43,44,12,8,14,98,20,16,12,12,14,12,15,16,0,0,0,0,0,0,0,0,0,0,-6,0,-1,0,0,0,0,14,0,6,0,33,0,0,0,0,0,0,0,0,0,0,0,0,0,0,0,0,0,0,0,10,18,57,52,103,106,236,106,79,0,0,0,0,0,0,0,0,0,0,0,0,0,0,0,12837,12837,12837,12838,12838,12839,12839,12839,12847,12847,12848,12848,12849,12849,12850,12850,12850,27998,27999,27999,27999,27999,27999,27999,27999,27999,27999,27999,27999,27999,27999,27999,27999,27996,27997,27997,27998,27998,27999,27991,27992,27992,27997,27997,27999,27999]} 1. d4 {[%emt 0:00:00] ChessBase II} Nf6 {[%emt 0:00:00]} 2. c4 {[%emt 0:00:02]} e6 {[%emt 0:00:02]} 3. Nc3 {[%emt 0:00:02]} Bb4 {[%emt 0:00:01]} 4. e3 {[%emt 0:00:02]} O-O {[%emt 0:00:03]} 5. Bd3 {[%emt 0:00:01]} d5 {[%emt 0:00:30]} 6. a3 {[%emt 0:00:03]} Be7 {[%emt 0:00:21]} 7. Nf3 {[%emt 0:00:04]} dxc4 {[%emt 0:00:06]} 8. Bxc4 {[%emt 0:00:00]} c5 {[%emt 0:00:02]} 9. O-O {[%emt 0:00:05]} cxd4 {[%emt 0:00:04] was the old line (9...a6).} 10. exd4 {[%emt 0:00:04]} Nc6 {[%emt 0:00:02]} 11. Re1 {[%emt 0:00:14]} b6 {[%emt 0:01:57] D26: Queen's Gambit Accepted: 4 e3 e6 5 Bxc5 c5 sidelines.} 12. d5 {[%emt 0:01:16]} Na5 {[%emt 0:00:15] 12...Na5 has lost popularity.} 13. Ba2 {[%emt 0:00:03] Hoping for Qe2.} exd5 {[%emt 0:01:30]} (13... Nxd5 $1 $11 {remains equal.} 14. Nxd5 exd5) 14. Nxd5 {[%emt 0:00:00] White has more active pieces. The black rooks are badly placed.} (14. b4 $1 $16 {[%cal Rb4a5]} Nc6 15. Nxd5) 14... Nxd5 $11 {[%emt 0:00:06]} 15. Qxd5 {[%emt 0:00:28]} Be6 {[%emt 0:02:18]} 16. Qxd8 {[%emt 0:01:42]} Raxd8 {[%emt 0:00:32]} 17. Bxe6 {[%emt 0:00:01]} fxe6 {[%emt 0:00:01]} 18. b4 {[%emt 0:01:17]} Bf6 {[%emt 0:02:12]} 19. Ra2 {[%emt 0:02:16] [#]} Bc3 $146 {[%emt 0:01:17]} ({Predecessor:} 19... Nc4 20. b5 Bc3 21. Rf1 Nd6 22. a4 Ne4 23. h3 Rc8 24. Ng5 Nxg5 25. Bxg5 Bd4 26. Re1 Rf5 {0-1 (32) Vaisser,A (2573)-Galdunts,S (2485) France 2006 EXT 2007 [ChessBase II]}) 20. Rf1 {[%emt 0:00:29]} Nb3 {[%emt 0:01:32]} 21. Be3 {[%emt 0:00:07]} Bf6 {[%emt 0:02:04]} 22. Rb1 {[%emt 0:02:04]} e5 {[%emt 0:00:39]} 23. h4 {[%emt 0:02:27]} Rd3 {[%emt 0:00:50]} 24. g3 {[%emt 0:00:50]} e4 {[%emt 0:00:45]} 25. Ne1 {[%emt 0:00:48]} Rc3 {[%emt 0:00:03]} 26. Rd1 {[%emt 0:00:00]} Rfc8 {[%emt 0:00:48]} 27. Kf1 {[%emt 0:02:11]} R3c4 {[%emt 0:00:51]} 28. Re2 {[%emt 0:00:25]} a5 {[%emt 0:00:44]} 29. b5 {[%emt 0:00:16]} Bd4 {[%emt 0:00:06]} 30. Ng2 {[%emt 0:00:25]} a4 {[%emt 0:00:12]} 31. h5 {[%emt 0:00:05]} R8c5 {[%emt 0:00:09]} 32. g4 {[%emt 0:00:50]} Rxb5 {[%emt 0:00:06]} 33. Nh4 {[%emt 0:00:02]} g6 {[%emt 0:00:11] Prevents Nf5.} 34. hxg6 {[%emt 0:00:21]} hxg6 {[%emt 0:00:00]} 35. Nxg6 {[%emt 0:00:04]} Kf7 {[%emt 0:00:06]} 36. Nh4 {[%emt 0:00:07]} Bxe3 {[%emt 0:00:24]} 37. Rxe3 {[%emt 0:00:00]} Rc2 {[%emt 0:00:01]} 38. Nf5 {[%emt 0:00:17] Strongly threatening Nd6+.} Nd2+ {[%emt 0:00:04]} 39. Kg2 {[%emt 0:00:01] Threatens to win with Nd6+.} Rbb2 {[%emt 0:00:04]} 40. Kg3 {[%emt 0:00:47]} Rb3 {[%emt 0:00:09] [#]} (40... b5 $1 $14) 41. Kf4 $1 $16 {[%emt 0:00:01]} Rxe3 {[%emt 0:00:08]} (41... b5 $16) 42. fxe3 {[%emt 0:00:00][%mdl 4096] Endgame KRN-KRN} (42. Nxe3 $18 {is the precise move to win.} Rb2 43. g5) 42... Nc4 {[%emt 0:00:35]} 43. Nd6+ {[%emt 0:01:04]} ({Much weaker is} 43. Kxe4 Nxa3 44. Rd7+ Kf6 $11) (43. Rd7+ $16 Ke6 44. Nd4+ Kxd7 45. Nxc2) 43... Nxd6 $11 {[%emt 0:00:14]} 44. Rxd6 {[%emt 0:00:00] KR-KR} b5 {[%emt 0:00:02]} 45. Rb6 {[%emt 0:00:10]} Rb2 {[%emt 0:00:08]} 46. Kf5 {[%emt 0:00:20]} Rb3 {[%emt 0:00:25]} 47. Rb7+ {[%emt 0:00:03]} Kg8 {[%emt 0:00:02]} 48. Kxe4 {[%emt 0:00:16]} Rxa3 {[%emt 0:00:01]} 49. Rxb5 {[%emt 0:00:01]} Ra1 {[%emt 0:00:01]} 50. Kf5 {[%emt 0:00:19]} Rf1+ $2 {[%emt 0:00:20][%mdl 8192] [#] Black is on the road to losing.} (50... a3 $11 51. Rb8+ Kf7 52. Rb7+ Ke8) 51. Kg6 $1 $18 {[%emt 0:00:07]} Kf8 {[%emt 0:00:21]} 52. g5 {[%emt 0:00:23]} (52. Rf5+ Rxf5 53. Kxf5 a3 54. Kg6 a2 55. Kf5 a1=Q 56. Ke4 Qc3 57. Kf3 Kf7 58. Kf4 Ke6 59. g5 Qc4+ 60. e4 Qc1+ 61. Kg4 Ke5 62. Kf3 Qxg5 63. Ke2 Kxe4 64. Kf2 Qg7 65. Ke1 Ke3 66. Kf1 Qg6 67. Ke1 Qg1#) 52... a3 {[%emt 0:00:13]} 53. Ra5 {[%emt 0:00:06]} Ra1 {[%emt 0:00:03]} 54. Ra7 {[%emt 0:00:29]} a2 {[%emt 0:00:08]} 55. e4 {[%emt 0:00:02][%cal Be3e4,Be4e5,Be5e6,Be6e7][%mdl 32]} Ke8 {[%emt 0:00:05]} 56. e5 {[%emt 0:00:03]} Kf8 {[%emt 0:00:13]} 57. e6 {[%emt 0:00:02]} Ke8 {[%emt 0:00:20]} 58. e7 {[%emt 0:00:02]} Rb1 {[%emt 0:00:13]} 59. Rxa2 {[%emt 0:00:03]} Rg1 {[%emt 0:00:11] White mates.} 60. Re2 {[%emt 0:00:09]} Rg3 {[%emt 0:00:02]} 61. Kh6 {[%emt 0:00:05]} Rh3+ {[%emt 0:00:02]} 62. Kg7 {[%emt 0:00:01]} Rg3 {[%emt 0:00:09]} 63. g6 {[%emt 0:00:02][%cal Bg5g6,Bg6g7][%mdl 32]} Rg1 {[%emt 0:00:01]} 64. Re5 {[%emt 0:00:32]} Rg2 {[%emt 0:00:05]} 65. Kh6 {[%emt 0:00:09]} Rh2+ {[%emt 0:00:04]} 66. Rh5 {[%emt 0:00:05]} Rg2 {[%emt 0:00:03]} 67. g7 {[%emt 0:00:26]} Kxe7 {[%emt 0:00:01]} 68. Kh7 {[%emt 0:00:05]} Kf7 {[%emt 0:00:07]} 69. Rf5+ {[%emt 0:00:01]} Ke6 {[%emt 0:00:00]} 70. Rf1 {[%emt 0:00:09]} Rh2+ {[%emt 0:00:03]} 71. Kg8 {[%emt 0:00:02]} Ra2 {[%emt 0:00:05]} 72. Rh1 {[%emt 0:00:05]} Kf6 {[%emt 0:00:47]} 73. Kh8 {[%emt 0:00:08] Weighted Error Value: White=0.11 (very precise) /Black=0.11 (very precise)} 1-0

[Event "Julius Baer Generation Cup KO 2022"]
[Site "Online"]
[Date "2022.09.22"]
[Round "1.1"]
[White "Keymer, Vincent"]
[Black "Praggnanandhaa R"]
[Result "1/2-1/2"]
[ECO "B13"]
[WhiteElo "2693"]
[BlackElo "2676"]
[Annotator "TA"]
[PlyCount "82"]
[EventDate "2022.09.22"]
[EventType "k.o."]
[EventCountry "NET"]
[SourceTitle "playchess.com"]
[Source "ChessBase"]
[SourceQuality "1"]
[TimeControl "900+10"]

{[%evp 10,82,13,13,9,13,16,15,22,12,14,6,14,12,11,15,12,13,13,14,26,29,37,21,23,24,35,31,27,26,30,35,32,19,25,23,28,13,13,13,15,15,19,15,39,21,24,19,22,3,3,3,4,6,14,0,0,0,0,0,0,0,0,0,0,0,0,0,0,0,0,0,0,0,0]} 1. d4 {[%emt 0:00:00]} d5 {[%emt 0:00:00]} 2. Nf3 {[%emt 0:00:02]} Nf6 {[%emt 0:00:02]} 3. e3 {[%emt 0:00:01]} c5 {[%emt 0:00:03]} 4. Be2 {[%emt 0:00:01]} Nc6 {[%emt 0:00:06]} 5. c3 {[%emt 0:00:01]} cxd4 {[%emt 0:00:06]} 6. exd4 {[%emt 0:00:00]} Bg4 {[%emt 0:00:01] B13: Caro-Kann: Exchange Variation and Panov-Botvinnik Attack.} 7. Bf4 {[%emt 0:00:02]} Bxf3 {[%emt 0:00:03]} 8. Bxf3 {[%emt 0:00:03]} ({Don't play} 8. gxf3 e6 $15) 8... e6 {[%emt 0:00:00]} 9. Nd2 {[%emt 0:00:46]} Bd6 {[%emt 0:00:04] [#]} 10. Be3 $146 {[%emt 0:00:02]} ({Predecessor:} 10. Bg5 h6 11. Bh4 O-O 12. O-O a6 13. Be2 b5 14. a3 Be7 15. Bd3 Na5 16. b4 {0-1 (66) Caruana,F (2781)-Sjugirov,S (2696) Chess.com INT 2022}) 10... O-O {[%emt 0:00:21]} 11. O-O {[%emt 0:00:32]} h6 {[%emt 0:02:17]} 12. g3 {[%emt 0:00:37]} Qc7 {[%emt 0:00:25]} 13. Be2 {[%emt 0:00:40]} Rad8 {[%emt 0:00:37]} 14. Re1 {[%emt 0:00:15]} e5 {[%emt 0:02:16]} 15. dxe5 {[%emt 0:01:05]} Bxe5 {[%emt 0:00:03]} 16. Nf3 {[%emt 0:00:11] Prevents d4.} Ng4 {[%emt 0:00:26]} 17. Bc5 {[%emt 0:01:35]} Rfe8 {[%emt 0:04:04]} 18. Bb5 {[%emt 0:02:56]} a6 $1 {[%emt 0:00:57]} 19. Bxc6 {[%emt 0:00:37]} ({Of course not} 19. Nxe5 Ncxe5 20. Bd4 axb5 $17) 19... Qxc6 {[%emt 0:00:04]} 20. Bd4 {[%emt 0:00:01]} Bxd4 {[%emt 0:00:05]} 21. Nxd4 {[%emt 0:02:28]} Qd7 {[%emt 0:00:03]} 22. Qc2 {[%emt 0:00:29]} Ne5 {[%emt 0:00:12]} 23. Kg2 {[%emt 0:00:05]} Nc6 {[%emt 0:00:12]} (23... h5 {is interesting.} 24. h4 Qg4 25. Qa4 Nc6) 24. Qd3 {[%emt 0:01:24]} Nxd4 {[%emt 0:01:13]} 25. Qxd4 {[%emt 0:00:00]} Qb5 {[%emt 0:00:01]} 26. b3 {[%emt 0:00:14]} Rc8 {[%emt 0:00:25]} 27. Rxe8+ {[%emt 0:01:00]} Rxe8 $14 {[%emt 0:00:04][%mdl 4096] Endgame KQR-KQR} 28. Rd1 {[%emt 0:00:01]} Re2 {[%emt 0:01:35] The position is equal.} 29. Qxd5 {[%emt 0:01:34]} Qxd5+ {[%emt 0:00:20]} 30. Rxd5 {[%emt 0:00:00] With the idea a4.} Rxa2 $11 {[%emt 0:00:00] KR-KR} 31. Rd8+ {[%emt 0:00:09]} Kh7 {[%emt 0:00:03]} 32. Rb8 {[%emt 0:00:41]} b5 {[%emt 0:00:10]} 33. c4 {[%emt 0:00:04]} bxc4 {[%emt 0:00:37]} 34. bxc4 {[%emt 0:00:00]} a5 {[%emt 0:00:07]} 35. Ra8 {[%emt 0:00:02]} Rc2 {[%emt 0:00:06]} 36. Rxa5 {[%emt 0:00:02]} Rxc4 {[%emt 0:00:01]} 37. h4 {[%emt 0:00:01]} g6 {[%emt 0:00:03]} 38. Ra7 {[%emt 0:00:02]} Kg7 {[%emt 0:00:01]} 39. Ra6 {[%emt 0:00:00]} h5 {[%emt 0:00:01]} 40. Ra5 {[%emt 0:00:01]} Rc8 {[%emt 0:00:02]} 41. Ra7 {[%emt 0:00:06]} Rb8 {[%emt 0:00:01] Weighted Error Value: White=0.04 (flawless) /Black=0.02 (flawless)} 1/2-1/2